bitfinex/quotes_ETHUSD_20241123
["timestamp","ask_amount","ask_price","bid_price","bid_amount"]
[1732355379245,0.92868,3356.4,3355.4,0.8025]
[1732355379825,0.92868,3356.4,3355.5,0.02979477]
[1732355383055,0.7739,3356.4,3355.6,0.7589]
[1732355384648,0.7739,3356.4,3355.7,0.02979458]
[1732355390454,0.7739,3356.4,3355.6,0.7589]
[1732355390768,0.55,3356.3,3355.6,0.7589]
[1732355390971,0.20978,3356.2,3355.6,0.7589]
[1732355399527,0.20978,3356.2,3355.0,0.7589]
[1732355399729,0.20978,3356.2,3355.1,0.78869585]
[1732355399929,0.15708917,3356.1,3355.1,0.78869585]
[1732355400131,0.15708917,3356.1,3355.2,35.0]
[1732355400429,0.15708917,3356.1,3355.3,0.02979588]
[1732355400756,0.15708917,3356.1,3355.2,35.0]
[1732355402844,1.315,3356.0,3355.2,35.0]
[1732355403053,0.20911977,3355.9,3355.2,35.0]
[1732355403230,0.55,3355.8,3355.2,35.0]
[1732355403772,0.55,3355.8,3355.1,0.7589]
[1732355404072,0.17190809,3355.9,3355.2,0.02979995]
[1732355404257,1.315,3356.3,3355.3,0.768]
[1732355404461,1.52389,3356.3,3355.4,0.02979703]
[1732355404633,0.75889,3356.3,3355.5,0.768]
[1732355404834,0.75889,3356.3,3355.6,0.02979578]
[1732355405171,0.229779,3356.2,3355.6,0.02979578]
[1732355405356,0.229779,3356.2,3355.5,0.768]
[1732355407281,1.315,3356.1,3355.5,0.768]
[1732355407435,1.315,3356.1,3355.2,0.768]
[1732355408473,0.15819907,3356.0,3355.2,0.768]
[1732355409551,0.15819907,3356.0,3355.3,0.02979781]
[1732355409867,1.5389,3356.4,3355.4,0.768]
[1732355410070,1.5389,3356.4,3355.5,0.0297939]
[1732355410984,1.5389,3356.4,3355.4,0.768]
[1732355411177,0.15389,3356.3,3355.5,0.02979391]
[1732355411376,0.55,3356.2,3355.4,0.768]
[1732355411895,0.55,3356.2,3355.5,0.02979584]
[1732355412087,0.774279,3356.2,3355.5,0.02979584]
[1732355414187,0.7739,3356.4,3355.5,0.02979584]
[1732355414357,0.7739,3356.4,3354.7,0.2967]
[1732355414358,0.7739,3356.4,3355.6,0.768]
[1732355414559,0.7739,3356.4,3355.8,0.768]
[1732355414763,0.7739,3356.4,3355.9,0.02979247]
[1732355416459,0.7739,3356.4,3356.0,0.768]
[1732355416796,0.7739,3356.4,3356.1,0.0297909]
[1732355416948,0.765,3357.0,3356.1,0.0297909]
[1732355417157,0.768,3356.9,3356.1,0.0297909]
[1732355421788,0.768,3356.9,3356.2,0.768]
[1732355421983,0.768,3356.9,3356.4,0.7596]
[1732355422293,0.768,3356.9,3356.5,0.02978704]
[1732355425601,0.768,3356.9,3356.6,0.8229]
[1732355425801,0.768,3356.9,3355.5,0.01]
[1732355425802,0.7739,3357.8,3356.8,0.8229]
[1732355426023,0.768,3357.6,3356.9,0.029783]
[1732355430072,0.768,3357.6,3357.0,0.8229]
[1732355431592,0.15419,3357.5,3357.0,0.8229]
[1732355431795,0.15419,3357.5,3357.1,0.04803244]
[1732355432103,0.15419,3357.5,3357.2,0.04779901]
[1732355432309,0.768,3357.6,3357.1,0.02978324]
[1732355432508,0.768,3357.6,3357.3,0.04774889]
[1732355432807,0.768,3357.6,3357.1,0.02978324]
[1732355432983,0.768,3357.6,3357.4,0.04767738]
[1732355433193,0.768,3357.6,3357.0,0.8229]
[1732355433816,0.768,3357.6,3357.1,0.02978313]
[1732355434120,0.768,3357.6,3357.0,0.8229]
[1732355434881,0.768,3357.6,3357.1,0.02978263]
[1732355435227,0.768,3357.6,3356.4,0.8229]
[1732355435390,5.31,3359.9,3356.4,0.8229]
[1732355435391,0.7739,3359.0,3356.6,0.8229]
[1732355435712,0.7739,3358.8,3356.7,0.90069794]
[1732355435920,0.81111168,3358.7,3356.7,0.90069794]
[1732355436123,0.16340117,3358.6,3356.7,0.90069794]
[1732355436418,0.81111168,3358.5,3356.7,0.87092234]
[1732355436592,0.7739,3358.5,3356.7,0.87092234]
[1732355436792,0.81111168,3358.4,3356.8,0.85267764]
[1732355436993,0.81111168,3358.4,3356.8,0.90064984]
[1732355438013,0.7739,3358.4,3356.8,0.90064984]
[1732355438381,0.81111168,3358.3,3356.8,0.90064984]
[1732355438584,0.55,3358.3,3356.8,0.90064984]
[1732355438886,0.7739,3357.9,3356.8,0.85267764]
[1732355439210,0.7739,3357.9,3356.9,0.04789453]
[1732355439412,0.7739,3357.9,3357.0,0.02978166]
[1732355439800,0.7739,3357.9,3357.1,0.04779428]
[1732355440006,0.7739,3357.9,3357.3,0.8229]
[1732355440296,0.7739,3357.9,3357.4,0.04764391]
[1732355440683,0.7739,3357.9,3357.1,0.8229]
[1732355441103,0.7739,3357.9,3357.2,0.04777848]
[1732355442507,0.7739,3357.9,3356.9,0.02978224]
[1732355442702,0.7739,3357.9,3357.0,0.04794528]
[1732355444635,0.7739,3357.9,3357.1,0.02978227]
[1732355444941,0.55,3358.5,3357.2,0.87334502]
[1732355445234,0.55,3358.3,3357.3,0.02978225]
[1732355445538,0.55,3358.0,3357.4,0.04774478]
[1732355446334,0.55,3358.0,3357.2,0.8255]
[1732355446505,0.55,3358.0,3357.5,0.04769466]
[1732355446706,0.55,3358.0,3357.2,0.8255]
[1732355446904,0.55,3358.0,3357.3,0.0477949]
[1732355447101,0.7739,3358.1,3357.3,0.0477949]
[1732355447509,0.7739,3358.1,3357.2,0.8255]
[1732355447893,0.7739,3357.9,3356.9,0.8255]
[1732355448118,0.7739,3357.7,3357.0,0.04606456]
[1732355448325,0.7739,3357.4,3356.6,0.8255]
[1732355448637,0.7739,3357.4,3357.1,0.04603159]
[1732355448839,0.7739,3357.4,3356.6,0.8255]
[1732355449018,0.7739,3357.4,3357.2,0.04598147]
[1732355449200,0.7739,3357.4,3356.6,0.8255]
[1732355449548,1.3239,3357.4,3356.6,0.8255]
[1732355450101,0.58721168,3357.3,3356.3,0.8255]
[1732355450325,0.02,3358.5,3356.3,0.8255]
[1732355450326,0.55,3357.1,3356.4,0.0464301]
[1732355450513,0.7739,3357.2,3356.3,0.8255]
[1732355451428,0.7739,3357.2,3356.4,0.02978859]
[1732355451804,0.7739,3357.2,3356.5,0.04637995]
[1732355452040,0.7739,3357.2,3356.3,0.8255]
[1732355452201,0.7739,3357.2,3356.6,0.04632981]
[1732355452401,0.7739,3357.2,3356.3,0.8255]
[1732355453907,0.55,3357.1,3356.3,0.8255]
[1732355454144,0.7739,3356.8,3355.5,0.8023]
[1732355454455,0.7739,3356.8,3356.4,0.04631412]
[1732355454747,0.7739,3356.8,3355.8,0.02979144]
[1732355454949,0.7739,3356.8,3356.5,0.04621246]
[1732355455102,0.7739,3356.8,3356.0,0.02979144]
[1732355455540,0.7739,3356.8,3356.1,0.04641306]
[1732355455767,0.7739,3356.8,3356.2,0.02978973]
[1732355455943,0.7739,3356.8,3356.2,0.07615263]
[1732355456142,0.55,3358.1,3356.3,0.8023]
[1732355456466,0.55,3358.1,3356.4,0.02978913]
[1732355456467,0.55,3357.7,3356.4,0.02978913]
[1732355456768,0.55,3357.5,3356.5,0.8023]
[1732355456985,0.55,3357.3,3356.5,0.84851246]
[1732355457468,0.7739,3357.4,3356.5,0.84851246]
[1732355457469,0.7739,3357.4,3356.6,0.02978725]
[1732355457866,0.7739,3357.4,3356.7,0.04611218]
[1732355458035,0.7739,3357.7,3356.8,0.8023]
[1732355458429,0.7739,3357.7,3356.9,0.07579476]
[1732355458829,0.7739,3357.7,3356.9,0.04601191]
[1732355459030,0.7739,3357.7,3356.9,0.07579477]
[1732355460753,0.7739,3357.7,3356.9,0.04601191]
[1732355461132,0.7739,3357.5,3356.6,0.8023]
[1732355464871,0.7739,3357.5,3356.7,0.02978596]
[1732355466154,0.7739,3357.5,3356.6,0.8023]
[1732355467490,0.7739,3357.5,3356.8,0.7654]
[1732355467797,0.7524,3357.8,3356.9,0.07613968]
[1732355468192,0.7524,3357.8,3355.8,0.01]
[1732355468193,0.7524,3357.8,3357.0,0.7654]
[1732355468528,0.03721168,3358.5,3357.0,0.7654]
[1732355468529,0.7524,3358.4,3357.1,0.04632171]
[1732355468823,0.7524,3358.4,3357.2,0.79518285]
[1732355468985,0.7524,3358.4,3357.2,0.84145108]
[1732355469697,0.03721168,3358.3,3357.2,0.84145108]
[1732355469913,0.03721168,3358.3,3357.2,0.81166823]
[1732355470290,1.3024,3358.2,3357.2,0.81166823]
[1732355470488,0.03721168,3358.1,3357.2,0.81166823]
[1732355470725,1.3024,3358.2,3357.3,0.02978085]
[1732355470942,0.7524,3358.2,3357.3,0.02978085]
[1732355471133,0.7524,3358.4,3357.4,0.7654]
[1732355471442,0.7524,3358.4,3357.5,0.0461003]
[1732355472041,0.7524,3358.4,3357.5,0.07587814]
[1732355472211,0.16340117,3358.6,3357.6,0.7654]
[1732355472539,0.20061285,3358.6,3357.6,0.81145018]
[1732355472946,0.16340117,3358.6,3357.6,0.81145018]
[1732355473147,0.20061285,3358.6,3357.6,0.81145018]
[1732355473745,0.20061285,3358.6,3357.7,0.79517633]
[1732355474041,0.20061285,3358.6,3357.8,0.04594827]
[1732355479513,0.16340117,3358.6,3357.9,0.7654]
[1732355479731,0.55,3358.6,3357.9,0.7654]
[1732355480013,0.55,3358.6,3358.0,0.04591376]
[1732355481149,0.58721168,3358.6,3358.0,0.04591376]
[1732355482652,0.55,3358.6,3358.0,0.04591376]
[1732355483143,0.55,3358.6,3357.7,0.78]
[1732355483357,0.55,3358.6,3358.1,0.04580971]
[1732355483525,0.55,3358.6,3357.7,0.78]
[1732355483707,0.55,3358.6,3358.2,0.0457596]
[1732355483908,0.55,3358.6,3357.7,0.78]
[1732355484141,0.7655,3358.6,3358.3,0.0457095]
[1732355484350,0.55,3358.5,3357.7,0.78]
[1732355486036,0.55,3358.5,3357.8,0.04549039]
[1732355486462,0.55,3358.3,3357.8,0.04549039]
[1732355486647,0.03721168,3358.2,3357.4,0.78]
[1732355487178,0.55,3358.1,3357.4,0.78]
[1732355487364,0.55,3357.9,3357.5,0.04564034]
[1732355487678,0.55,3357.9,3357.1,0.78]
[1732355487878,0.55,3357.7,3357.6,0.04559021]
[1732355488175,0.55,3357.7,3357.1,0.78]
[1732355488339,0.55,3357.7,3356.9,0.78]
[1732355488340,0.55,3357.5,3356.9,0.78]
[1732355488674,0.55,3357.7,3357.0,0.04590226]
[1732355490043,0.7655,3357.8,3357.0,0.04590226]
[1732355490275,0.55,3358.4,3357.1,0.78]
[1732355490473,0.7655,3358.1,3357.1,0.82570431]
[1732355490780,0.03721168,3358.0,3357.1,0.82570431]
[1732355491276,0.55,3358.0,3357.1,0.82570431]
[1732355491485,0.55,3358.0,3357.1,0.78]
[1732355491954,0.55,3358.0,3357.3,0.78]
[1732355492150,0.55,3358.0,3357.4,0.04557109]
[1732355492476,0.7655,3358.6,3357.5,0.78]
[1732355492840,0.03721168,3358.5,3357.7,0.78]
[1732355493279,0.03721168,3358.5,3357.8,0.04538811]
[1732355493466,0.55,3358.4,3357.8,0.04538811]
[1732355493782,0.03721168,3358.5,3357.8,0.04538811]
[1732355494074,0.55,3358.2,3357.8,0.04538811]
[1732355494262,0.55,3358.4,3357.7,0.78]
[1732355494468,0.55,3358.2,3357.7,0.78]
[1732355494840,0.58721168,3358.5,3357.8,0.04540519]
[1732355495271,0.58721168,3358.5,3357.7,0.78]
[1732355495480,0.58721168,3358.5,3356.7,0.02978038]
[1732355495481,0.55,3358.3,3356.8,0.78]
[1732355495775,0.03721168,3358.2,3357.8,0.04542236]
[1732355495983,0.03721168,3358.2,3357.5,0.78]
[1732355496342,0.03721168,3358.2,3357.9,0.04540371]
[1732355496555,0.55,3358.1,3357.5,0.78]
[1732355496781,0.03721168,3358.0,3357.5,0.78]
[1732355496981,0.03721168,3358.2,3357.6,0.04555109]
[1732355497196,0.7655,3358.0,3357.6,0.04555109]
[1732355497471,0.55,3357.9,3357.2,0.78]
[1732355497671,0.55,3357.9,3357.3,0.04593006]
[1732355498177,0.55,3358.2,3357.4,0.78]
[1732355498591,0.55,3358.2,3357.5,0.04475995]
[1732355498740,0.55,3358.2,3357.6,0.78]
[1732355498945,0.55,3358.4,3357.6,0.78]
[1732355500542,1.5884,3358.9,3357.6,0.78]
[1732355500748,0.03721168,3358.8,3357.8,0.78]
[1732355501189,0.03721168,3358.8,3357.9,0.04474991]
[1732355502190,0.55,3358.7,3357.9,0.04474991]
[1732355502495,0.03721168,3358.6,3357.8,0.78]
[1732355502645,0.55,3358.8,3357.8,0.78]
[1732355502848,0.779724,3358.8,3357.8,0.78]
[1732355504253,0.779724,3358.8,3356.9,0.02977647]
[1732355504254,0.779724,3358.8,3357.9,0.7538]
[1732355504479,0.55,3358.6,3358.0,0.04529162]
[1732355504653,0.55,3358.6,3357.9,0.7538]
[1732355504856,0.55,3358.8,3358.0,0.04529162]
[1732355505187,0.55,3358.6,3358.0,0.04529162]
[1732355506289,0.55,3358.6,3357.9,0.7538]
[1732355507449,0.58721168,3358.6,3357.9,0.7538]
[1732355509303,0.55,3358.6,3357.9,0.7538]
[1732355509507,0.58721168,3358.6,3357.9,0.7538]
[1732355510001,0.58721168,3358.6,3358.0,0.04527098]
[1732355510175,0.82615685,3358.6,3357.9,0.7538]
[1732355510568,0.78894517,3358.6,3357.9,0.7538]
[1732355511571,0.03721168,3358.5,3357.9,0.7538]
[1732355513685,0.7739,3358.4,3357.1,0.7538]
[1732355513914,0.78894517,3358.6,3357.2,0.78357654]
[1732355514073,0.58721168,3358.6,3357.4,0.7538]
[1732355514273,0.58721168,3358.6,3357.6,0.7538]
[1732355514473,0.58721168,3358.6,3357.7,0.0455142]
[1732355514681,0.80561285,3358.6,3357.8,0.7538]
[1732355514873,0.58721168,3358.6,3357.9,0.04541397]
[1732355515108,0.03721168,3358.5,3357.8,0.7538]
[1732355515429,0.55,3358.6,3357.8,0.7538]
[1732355515716,0.03721168,3358.5,3357.9,0.04541397]
[1732355516318,0.55,3358.4,3357.9,0.04541397]
[1732355516679,0.03721168,3358.3,3357.9,0.04541397]
[1732355516986,0.58721168,3358.5,3357.8,0.7538]
[1732355517188,0.03721168,3358.3,3357.9,0.04540966]
[1732355517502,0.55,3358.5,3357.9,0.04540966]
[1732355520324,0.55,3358.3,3357.9,0.04540966]
[1732355521084,0.55,3358.1,3357.9,0.04540966]
[1732355521413,0.55,3358.0,3357.5,0.7538]
[1732355521631,0.58721168,3358.3,3357.5,0.7538]
[1732355523812,0.55,3358.3,3357.5,0.7538]
[1732355524837,0.55,3358.1,3356.6,0.8232]
[1732355524991,0.55,3357.8,3356.6,0.8232]
[1732355525197,0.55,3357.6,3356.7,0.86902813]
[1732355525449,0.7692,3357.5,3356.7,0.86902813]
[1732355525614,0.55,3357.4,3356.7,0.8232]
[1732355525810,0.73692,3357.4,3356.8,0.04575659]
[1732355526128,0.73692,3357.4,3356.9,0.8232]
[1732355526298,0.55,3357.7,3356.9,0.8232]
[1732355526632,0.55,3357.7,3357.0,0.04565631]
[1732355528643,0.7692,3357.4,3357.0,0.04565631]
[1732355528937,0.55,3357.3,3356.6,0.8232]
[1732355529298,0.55,3357.3,3356.7,0.04527446]
[1732355532040,0.55,3357.1,3356.7,0.04527446]
[1732355532213,0.55,3356.9,3356.7,0.04527446]
[1732355532395,0.03721168,3356.8,3356.3,0.8232]
[1732355532596,0.55,3356.7,3356.3,0.8232]
[1732355532822,0.55,3356.7,3356.4,0.04547903]
[1732355533342,0.55,3356.5,3356.4,0.04547903]
[1732355533642,0.55,3356.7,3356.3,0.8232]
[1732355534543,0.55,3357.0,3356.3,0.8232]
[1732355535702,0.55,3356.8,3356.3,0.8232]
[1732355535912,0.55,3356.6,3356.3,0.8232]
[1732355536234,0.55,3356.9,3356.3,0.8232]
[1732355536431,0.55,3356.7,3356.3,0.8232]
[1732355536609,0.55,3356.9,3356.3,0.8232]
[1732355538804,0.03721168,3356.9,3356.3,0.8232]
[1732355539011,0.55,3356.8,3354.9,0.8232]
[1732355539219,0.55,3356.8,3353.8,3.4157]
[1732355539220,0.55,3356.8,3355.1,0.8232]
[1732355539424,0.55,3356.6,3355.2,0.89942098]
[1732355539597,0.55,3356.4,3355.2,0.89942098]
[1732355539800,0.55,3356.2,3355.2,0.89942098]
[1732355540108,0.55,3356.2,3355.2,0.85299602]
[1732355540317,0.55,3356.4,3355.4,0.8232]
[1732355540622,0.55,3356.2,3355.4,0.8232]
[1732355540825,0.55,3356.2,3355.6,0.8232]
[1732355540995,0.55,3356.2,3355.7,0.04590757]
[1732355541323,0.55,3356.0,3355.7,0.04590757]
[1732355541521,0.55,3356.3,3355.7,0.04590757]
[1732355541725,0.55,3356.1,3355.7,0.04590757]
[1732355542173,0.55,3355.9,3355.7,0.04590757]
[1732355542524,0.55,3356.1,3355.6,0.8232]
[1732355543203,1.3239,3356.1,3355.6,0.8232]
[1732355544209,0.03721168,3356.0,3355.6,0.8232]
[1732355544397,0.55,3355.9,3355.6,0.8232]
[1732355544597,0.03721168,3355.8,3355.6,0.8232]
[1732355544804,0.55,3355.7,3354.2,0.7583]
[1732355545110,0.55,3355.5,3354.4,0.7583]
[1732355545314,0.55,3355.8,3354.6,0.7583]
[1732355545525,0.55,3355.8,3354.8,0.7583]
[1732355545832,0.55,3355.8,3354.9,0.78810211]
[1732355546042,0.55,3356.0,3354.9,0.78810211]
[1732355546238,0.55,3356.0,3355.1,0.7583]
[1732355546411,0.75978,3356.0,3355.1,0.7583]
[1732355546599,0.55,3356.0,3355.3,0.7583]
[1732355546801,0.55,3356.0,3355.5,0.7583]
[1732355547242,0.55,3356.0,3355.6,0.04627277]
[1732355547612,0.55,3356.0,3355.5,0.7583]
[1732355547949,0.55,3356.0,3355.6,0.04620543]
[1732355548545,0.55,3356.0,3355.7,0.04618961]
[1732355549037,0.55,3356.0,3355.5,0.7583]
[1732355549237,0.55,3356.0,3355.8,0.04613944]
[1732355549425,0.55,3356.0,3355.5,0.7583]
[1732355549653,1.3239,3356.0,3355.9,0.04608928]
[1732355549831,1.53368,3356.0,3354.2,0.7583]
[1732355550034,1.53368,3356.0,3355.9,0.04609895]
[1732355550221,0.55,3356.0,3355.5,0.7583]
[1732355550430,0.55,3356.0,3355.9,0.04611654]
[1732355551037,0.55,3356.0,3355.5,0.7583]
[1732355551247,0.55,3356.0,3355.9,0.04611654]
[1732355551428,0.75978,3356.0,3355.5,0.7583]
[1732355551744,0.55,3356.0,3355.5,0.7583]
[1732355552040,0.55,3356.0,3355.6,0.04626703]
[1732355552557,0.55,3356.0,3355.7,0.7583]
[1732355552910,0.55,3356.0,3355.8,0.0461667]
[1732355553110,0.55,3356.0,3355.7,0.7583]
[1732355553330,0.55,3356.0,3355.8,0.0461667]
[1732355553516,0.55,3356.0,3355.7,0.7583]
[1732355553719,0.55,3356.0,3355.8,0.0461667]
[1732355553910,0.55,3356.0,3355.7,0.7583]
[1732355554119,0.55,3356.0,3355.8,0.0461667]
[1732355554531,0.55,3356.0,3355.7,0.7583]
[1732355554720,0.55,3356.0,3355.8,0.0461667]
[1732355555043,0.55,3356.0,3354.0,0.04979901]
[1732355555249,1.18469237,3356.0,3354.0,0.02979901]
[1732355555409,0.55,3355.8,3354.1,0.04702781]
[1732355555609,0.55,3355.8,3354.2,0.0298007]
[1732355556145,0.55,3355.8,3353.6,0.0298007]
[1732355556321,0.19585924,3355.9,3353.6,0.0298007]
[1732355556322,0.55,3355.6,3353.9,0.01]
[1732355556642,0.55,3355.6,3353.6,0.0398007]
[1732355556947,0.55,3355.6,3353.7,0.04721151]
[1732355557118,0.55,3355.6,3353.8,0.02980282]
[1732355557321,0.55,3355.4,3353.9,0.04711106]
[1732355557522,0.75685688,3355.4,3354.0,0.02980346]
[1732355557701,0.75685688,3355.4,3354.1,0.7658]
[1732355557907,0.55,3355.2,3354.3,0.7658]
[1732355558143,0.55,3355.2,3354.4,0.84247604]
[1732355558333,0.55,3355.2,3354.4,0.81266959]
[1732355559349,0.55,3355.0,3354.4,0.81266959]
[1732355559652,0.55,3355.2,3354.5,0.0298076]
[1732355559944,0.55,3355.2,3354.6,0.04646313]
[1732355560358,0.55,3355.2,3354.7,0.7658]
[1732355560645,0.7755,3355.8,3354.9,0.7658]
[1732355560829,0.93416117,3355.8,3354.9,0.7658]
[1732355561371,0.03721168,3355.7,3354.9,0.1796]
[1732355561733,0.03721168,3355.7,3353.6,0.02980525]
[1732355561935,0.55,3355.5,3353.7,0.04710332]
[1732355562178,0.55,3355.5,3353.8,0.02980659]
[1732355562557,0.55,3355.5,3353.9,0.04693558]
[1732355562760,0.55,3355.5,3354.0,0.02980737]
[1732355562964,0.55,3355.5,3353.5,0.2967]
[1732355563146,0.55,3355.5,3353.6,0.02980575]
[1732355563335,0.55,3355.5,3353.6,0.37379734]
[1732355564712,0.55,3355.5,3353.7,0.7636]
[1732355564873,0.55,3355.7,3353.8,0.84059434]
[1732355567887,0.7766,3355.4,3353.8,0.84059434]
[1732355568092,0.55,3355.1,3353.8,0.84059434]
[1732355568291,0.55,3355.1,3353.8,0.7934032]
[1732355568514,0.55,3355.1,3353.9,0.04715379]
[1732355568654,0.55,3355.1,3354.0,0.7636]
[1732355568990,0.55,3354.9,3354.1,0.04708701]
[1732355569289,0.55,3355.0,3352.6,0.02981079]
[1732355569450,0.55,3354.8,3352.7,0.04781575]
[1732355569790,0.55,3354.8,3352.8,0.02981185]
[1732355570294,0.55,3354.8,3352.9,0.02]
[1732355570450,0.7766,3355.6,3353.1,0.02]
[1732355570646,0.7766,3355.6,3353.3,0.2967]
[1732355570995,0.7766,3355.6,3353.4,0.02980574]
[1732355571949,0.7766,3355.6,3353.6,0.7636]
[1732355572256,0.7766,3355.6,3353.1,0.02]
[1732355572257,0.55,3355.5,3353.8,0.7636]
[1732355572459,0.55,3355.5,3353.1,0.02]
[1732355572460,0.55,3355.3,3354.0,0.7636]
[1732355572687,0.55,3355.3,3354.2,0.7636]
[1732355572858,0.55,3355.1,3354.2,0.7636]
[1732355573267,0.55,3355.4,3354.2,0.7636]
[1732355573486,0.55,3355.0,3353.1,0.02980575]
[1732355573992,0.55,3354.8,3352.7,0.2967]
[1732355574288,0.55,3355.0,3352.8,0.07757932]
[1732355574488,0.71796975,3355.0,3352.9,0.2967]
[1732355574657,0.71796975,3355.0,3353.1,0.01]
[1732355574858,0.71796975,3355.0,3353.2,0.02980936]
[1732355576367,0.55,3354.8,3353.2,0.02980936]
[1732355576692,0.55,3354.9,3353.3,0.7636]
[1732355576901,0.55,3354.9,3353.4,0.79340939]
[1732355577057,0.58721168,3354.9,3353.4,0.79340939]
[1732355577256,0.80089431,3354.9,3353.4,0.79340939]
[1732355577797,0.76368263,3354.9,3353.4,0.79340939]
[1732355578294,0.55,3354.7,3353.4,0.79340939]
[1732355578495,0.55,3354.7,3353.5,0.81103804]
[1732355578662,0.55,3354.7,3353.6,0.79341072]
[1732355578869,0.55,3354.7,3353.7,0.04733758]
[1732355579383,1.3266,3354.5,3353.8,0.04728735]
[1732355579790,1.3266,3354.5,3353.6,0.7636]
[1732355580981,0.55,3354.5,3353.7,0.02981281]
[1732355581201,0.55,3354.7,3353.8,0.7636]
[1732355581495,0.55,3354.7,3353.8,0.80930985]
[1732355582669,0.8152,3354.4,3353.8,0.04565963]
[1732355582869,0.55,3354.3,3352.5,0.0298128]
[1732355583193,0.55,3354.3,3352.6,0.04487274]
[1732355583402,0.55,3354.3,3352.7,0.0298128]
[1732355584111,0.55,3354.3,3352.8,0.04477223]
[1732355584305,0.55,3354.3,3352.9,0.02981279]
[1732355585512,0.55,3354.3,3352.4,0.0398128]
[1732355585715,0.55,3354.3,3352.7,0.2967]
[1732355585862,0.55,3354.3,3352.9,0.4111]
[1732355586066,0.55,3354.3,3352.7,0.2967]
[1732355586067,1.16549493,3354.3,3353.1,0.4111]
[1732355586298,0.55,3354.1,3353.2,0.04467435]
[1732355587002,0.55,3354.1,3353.2,0.07448989]
[1732355587377,1.3652,3354.2,3353.2,0.07448989]
[1732355587795,1.3652,3354.2,3353.2,0.02981554]
[1732355588002,1.3652,3354.2,3353.1,0.4111]
[1732355588303,0.8152,3354.1,3353.1,0.4111]
[1732355588483,0.8152,3353.9,3352.2,0.4111]
[1732355588679,0.58721168,3353.8,3352.4,0.4111]
[1732355588992,0.55,3353.8,3352.6,0.4111]
[1732355589169,0.8152,3353.5,3352.6,0.4111]
[1732355589513,0.55,3353.4,3352.7,0.07477478]
[1732355589714,0.55,3353.4,3352.8,35.0]
[1732355589914,0.55,3353.4,3352.9,0.04485389]
[1732355590213,0.8152,3353.3,3353.0,0.04330851]
[1732355590518,0.55,3353.2,3353.0,0.04330851]
[1732355590811,0.55,3352.8,3352.4,35.0]
[1732355591121,0.55,3352.8,3352.0,0.4111]
[1732355591466,0.55,3352.8,3352.1,35.0]
[1732355591780,0.55,3352.8,3352.0,0.4111]
[1732355592877,0.8087,3354.0,3352.1,0.02982614]
[1732355593178,0.55,3353.3,3352.2,0.4111]
[1732355593370,0.8087,3353.4,3352.3,0.02982268]
[1732355593706,0.8087,3353.4,3351.2,35.3067]
[1732355593707,0.84597558,3353.3,3351.9,0.00057]
[1732355593869,0.8087,3353.3,3351.3,2.99141464]
[1732355594068,0.8087,3353.3,3351.4,2.99141464]
[1732355594270,0.8087,3353.1,3351.4,2.99141464]
[1732355594505,0.03728263,3353.0,3351.5,0.2967]
[1732355594670,0.8087,3352.8,3351.6,0.62795293]
[1732355594894,0.55,3352.7,3351.6,0.62795293]
[1732355595542,0.55,3352.7,3351.5,2.99141464]
[1732355595919,0.55,3352.5,3351.5,2.99141464]
[1732355596233,0.55,3352.7,3351.5,2.99141464]
[1732355596388,0.55,3352.5,3351.6,0.66018237]
[1732355596744,0.55,3352.5,3351.5,2.99141464]
[1732355597900,0.55,3352.5,3351.6,0.04066608]
[1732355598334,0.55,3352.2,3351.6,0.04066608]
[1732355598571,0.55,3352.2,3350.0,0.01]
[1732355598694,0.55,3352.2,3350.1,0.01]
[1732355599030,0.8087,3352.1,3350.3,35.2967]
[1732355599231,0.55,3351.8,3350.4,2.99141464]
[1732355599404,0.55,3351.8,3350.4,3.03111545]
[1732355599608,0.55,3351.8,3350.4,0.03970081]
[1732355599805,0.8087,3351.9,3350.5,35.0]
[1732355600000,0.8087,3352.3,3350.5,35.0]
[1732355600243,0.8087,3352.3,3350.6,3.03098905]
[1732355600244,0.55,3352.2,3350.6,3.03098905]
[1732355600535,0.55,3351.9,3350.6,3.03098905]
[1732355600751,0.55,3351.9,3350.6,0.03957441]
[1732355600900,0.55,3351.7,3350.7,35.0]
[1732355601101,0.55,3351.7,3350.8,3.03089302]
[1732355602242,0.8087,3351.6,3350.8,3.03089302]
[1732355604133,0.55,3351.5,3350.8,0.03947838]
[1732355604332,0.55,3351.5,3350.1,0.01]
[1732355604536,0.8087,3351.6,3350.2,35.0]
[1732355604779,0.8087,3351.6,3350.3,3.03114755]
[1732355605281,1.42702635,3351.6,3350.3,0.03973291]
[1732355605484,0.8087,3351.6,3350.4,35.0]
[1732355605643,0.7995,3353.1,3350.5,3.04105108]
[1732355605979,0.63859004,3351.9,3350.8,0.01]
[1732355606392,0.7995,3352.6,3350.9,0.04942639]
[1732355606884,0.7995,3353.0,3351.3,35.0]
[1732355607252,0.7995,3352.2,3351.4,0.03915148]
[1732355607448,0.7995,3352.2,3351.5,1.88211702]
[1732355607684,0.7995,3352.2,3351.6,0.03905089]
[1732355608281,0.7995,3353.0,3351.6,0.03905089]
[1732355608282,0.7995,3352.9,3351.6,0.03905089]
[1732355609488,0.7995,3352.9,3351.6,0.04905089]
[1732355609676,0.61681131,3353.0,3351.7,0.53048679]
[1732355609904,0.7995,3353.3,3351.8,35.03891353]
[1732355610212,0.7995,3353.1,3351.8,35.03891353]
[1732355610382,0.7995,3353.1,3351.8,35.04891353]
[1732355610572,0.7995,3353.1,3351.9,2.99141464]